[Event "January 2 Late 2024"]
[Site "https://www.chess.com"]
[Date "2024.01.02"]
[Round "11"]
[White "ArchibaldCerveza29"]
[Black "Olenik Campa, Rudi"]
[Result "1-0"]
[Board "75"]
[TimeControl "180+1"]
[BlackFideId "14633264"]
[WhiteElo "2446"]
[BlackElo "2590"]
[BlackTeam "SLO"]
[WhiteClock "0:00:08"]
[BlackClock "0:00:04"]

1. b3 {[%clk 0:03:00]}  e5 {[%clk 0:02:58]} 2. Bb2 {[%clk 0:03:01]}  Nc6 {[%clk 0:02:58]} 3. g3 {[%clk 0:03:02]}  d5 {[%clk 0:02:57]} 4. Bg2 {[%clk 0:03:03]}  g6 {[%clk 0:02:58]} 5. e3 {[%clk 0:03:03]}  Bg7 {[%clk 0:02:58]} 6. d3 {[%clk 0:03:04]}  Nge7 {[%clk 0:02:58]} 7. Ne2 {[%clk 0:03:05]}  h5 {[%clk 0:02:58]} 8. Nd2 {[%clk 0:03:05]}  h4 {[%clk 0:02:58]} 9. h3 {[%clk 0:02:58]}  hxg3 {[%clk 0:02:57]} 10. Nxg3 {[%clk 0:02:59]}  Be6 {[%clk 0:02:56]} 11. h4 {[%clk 0:02:59]}  Nf5 {[%clk 0:02:52]} 12. Nxf5 {[%clk 0:02:51]}  Bxf5 {[%clk 0:02:53]} 13. h5 {[%clk 0:02:52]}  Qg5 {[%clk 0:02:49]} 14. Bxd5 {[%clk 0:02:42]}  gxh5 {[%clk 0:02:37]} 15. Qf3 {[%clk 0:02:23]}  e4 {[%clk 0:02:23]} 16. Nxe4 {[%clk 0:02:17]}  Bxe4 {[%clk 0:02:14]} 17. Qxf7+ {[%clk 0:01:32]}  Kd8 {[%clk 0:02:13]} 18. Bxg7 {[%clk 0:01:32]}  Bxd5 {[%clk 0:01:59]} 19. Qf6+ {[%clk 0:00:54]}  Qxf6 {[%clk 0:01:57]} 20. Bxf6+ {[%clk 0:00:55]}  Kd7 {[%clk 0:01:57]} 21. e4 {[%clk 0:00:55]}  Rhe8 {[%clk 0:01:24]} 22. Rxh5 {[%clk 0:00:54]}  Bf7 {[%clk 0:01:23]} 23. Rh7 {[%clk 0:00:53]}  Ke6 {[%clk 0:01:23]} 24. Bc3 {[%clk 0:00:50]}  Re7 {[%clk 0:01:10]} 25. Kd2 {[%clk 0:00:48]}  Kd7 {[%clk 0:01:08]} 26. f4 {[%clk 0:00:42]}  Rg8 {[%clk 0:01:07]} 27. Rf1 {[%clk 0:00:30]}  Rg2+ {[%clk 0:01:05]} 28. Kc1 {[%clk 0:00:25]}  Be8 {[%clk 0:00:41]} 29. Rh8 {[%clk 0:00:20]}  Bf7 {[%clk 0:00:34]} 30. f5 {[%clk 0:00:18]}  Rg8 {[%clk 0:00:33]} 31. Rh7 {[%clk 0:00:18]}  Be8 {[%clk 0:00:21]} 32. Rh6 {[%clk 0:00:18]}  Bf7 {[%clk 0:00:17]} 33. d4 {[%clk 0:00:18]}  Kc8 {[%clk 0:00:16]} 34. e5 {[%clk 0:00:18]}  Bd5 {[%clk 0:00:14]} 35. Bb2 {[%clk 0:00:18]}  b5 {[%clk 0:00:13]} 36. a4 {[%clk 0:00:15]}  a6 {[%clk 0:00:12]} 37. axb5 {[%clk 0:00:16]}  axb5 {[%clk 0:00:13]} 38. c4 {[%clk 0:00:16]}  bxc4 {[%clk 0:00:12]} 39. bxc4 {[%clk 0:00:17]}  Bg2 {[%clk 0:00:12]} 40. Rg1 {[%clk 0:00:17]}  Nb4 {[%clk 0:00:12]} 41. Ba3 {[%clk 0:00:16]}  c5 {[%clk 0:00:12]} 42. Bxb4 {[%clk 0:00:15]}  cxb4 {[%clk 0:00:11]} 43. e6 {[%clk 0:00:14]}  b3 {[%clk 0:00:06]} 44. Kb2 {[%clk 0:00:14]}  Rb7 {[%clk 0:00:02]} 45. d5 {[%clk 0:00:14]}  Rg3 {[%clk 0:00:01]} 46. Rh2 {[%clk 0:00:12]}  Ra7 {[%clk 0:00:01]} 47. Rhxg2 {[%clk 0:00:11]}  Ra2+ {[%clk 0:00:02]} 48. Kb1 {[%clk 0:00:10]}  Rgxg2 {[%clk 0:00:02]} 49. Rxg2 {[%clk 0:00:11]}  Rxg2 {[%clk 0:00:02]} 50. f6 {[%clk 0:00:12]}  Kd8 {[%clk 0:00:02]} 51. d6 {[%clk 0:00:07]}  Rf2 {[%clk 0:00:02]} 52. f7 {[%clk 0:00:07]}  Rf1+ {[%clk 0:00:01]} 53. Kb2 {[%clk 0:00:07]}  Rf2+ {[%clk 0:00:02]} 54. Kxb3 {[%clk 0:00:08]}  Rf3+ {[%clk 0:00:02]} 55. Kb4 {[%clk 0:00:08]}  Rf6 {[%clk 0:00:03]} 56. f8=Q+ {[%clk 0:00:08]}  Rxf8 {[%clk 0:00:03]} 57. e7+ {[%clk 0:00:08]}  Ke8 {[%clk 0:00:04]} 58. exf8=Q+ {[%clk 0:00:08]} 1-0

[Event "January 2 Late 2024"]
[Site "https://www.chess.com"]
[Date "2024.01.02"]
[Round "11"]
[White "Morales Garcia, Sergio Joshafatt"]
[Black "Grycel, Kamil"]
[Result "1/2-1/2"]
[Board "76"]
[TimeControl "180+1"]
[WhiteFideId "5106249"]
[BlackFideId "1115499"]
[WhiteElo "2442"]
[BlackElo "2566"]
[WhiteTeam "MEX"]
[BlackTeam "POL"]
[WhiteClock "0:00:13"]
[BlackClock "0:00:12"]

1. d4 {[%clk 0:03:00]}  d6 {[%clk 0:03:00]} 2. Nf3 {[%clk 0:02:59]}  Bg4 {[%clk 0:03:00]} 3. e3 {[%clk 0:02:57]}  Nf6 {[%clk 0:02:59]} 4. c4 {[%clk 0:02:56]}  c6 {[%clk 0:02:59]} 5. Be2 {[%clk 0:02:56]}  e6 {[%clk 0:02:58]} 6. O-O {[%clk 0:02:54]}  d5 {[%clk 0:02:58]} 7. Nbd2 {[%clk 0:02:48]}  Nbd7 {[%clk 0:02:52]} 8. Qc2 {[%clk 0:02:44]}  Bf5 {[%clk 0:02:49]} 9. Bd3 {[%clk 0:02:43]}  Bxd3 {[%clk 0:02:43]} 10. Qxd3 {[%clk 0:02:44]}  Be7 {[%clk 0:02:42]} 11. b3 {[%clk 0:02:41]}  O-O {[%clk 0:02:42]} 12. Bb2 {[%clk 0:02:41]}  a5 {[%clk 0:02:41]} 13. a3 {[%clk 0:02:40]}  Qb6 {[%clk 0:02:34]} 14. c5 {[%clk 0:02:38]}  Qc7 {[%clk 0:02:32]} 15. b4 {[%clk 0:02:36]}  axb4 {[%clk 0:02:23]} 16. axb4 {[%clk 0:02:36]}  b5 {[%clk 0:02:23]} 17. Ra3 {[%clk 0:02:32]}  Qb7 {[%clk 0:02:11]} 18. Rfa1 {[%clk 0:02:30]}  h6 {[%clk 0:01:57]} 19. Qb1 {[%clk 0:02:17]}  Rxa3 {[%clk 0:01:54]} 20. Rxa3 {[%clk 0:02:17]}  Ra8 {[%clk 0:01:54]} 21. Qa2 {[%clk 0:02:15]}  Rxa3 {[%clk 0:01:54]} 22. Qxa3 {[%clk 0:02:16]}  Nb8 {[%clk 0:01:26]} 23. Nb3 {[%clk 0:02:15]}  Nfd7 {[%clk 0:01:21]} 24. Ne1 {[%clk 0:02:05]}  Qa6 {[%clk 0:01:17]} 25. Qxa6 {[%clk 0:01:52]}  Nxa6 {[%clk 0:01:18]} 26. Nd3 {[%clk 0:01:52]}  Bd8 {[%clk 0:01:15]} 27. Bc3 {[%clk 0:01:49]}  Bc7 {[%clk 0:01:14]} 28. h3 {[%clk 0:01:41]}  f6 {[%clk 0:01:14]} 29. f4 {[%clk 0:01:28]}  Kf7 {[%clk 0:01:12]} 30. Kf2 {[%clk 0:01:28]}  g5 {[%clk 0:01:06]} 31. g3 {[%clk 0:01:27]}  Kg6 {[%clk 0:01:04]} 32. Kf3 {[%clk 0:01:25]}  f5 {[%clk 0:00:57]} 33. Bd2 {[%clk 0:01:23]}  Nf6 {[%clk 0:00:52]} 34. Nf2 {[%clk 0:01:16]}  Ne4 {[%clk 0:00:36]} 35. Nxe4 {[%clk 0:01:15]}  dxe4+ {[%clk 0:00:36]} 36. Ke2 {[%clk 0:01:12]}  g4 {[%clk 0:00:34]} 37. h4 {[%clk 0:01:08]}  h5 {[%clk 0:00:29]} 38. Bc3 {[%clk 0:01:04]}  Kf7 {[%clk 0:00:29]} 39. Kd2 {[%clk 0:01:03]}  Ke7 {[%clk 0:00:30]} 40. Kc2 {[%clk 0:01:02]}  Kd7 {[%clk 0:00:29]} 41. Kb2 {[%clk 0:00:49]}  Bd8 {[%clk 0:00:29]} 42. Nc1 {[%clk 0:00:45]}  Nc7 {[%clk 0:00:28]} 43. Bd2 {[%clk 0:00:39]}  Nd5 {[%clk 0:00:28]} 44. Kb3 {[%clk 0:00:38]}  Bc7 {[%clk 0:00:24]} 45. Ne2 {[%clk 0:00:37]}  Bd8 {[%clk 0:00:24]} 46. Nc3 {[%clk 0:00:36]}  Nc7 {[%clk 0:00:24]} 47. Ne2 {[%clk 0:00:36]}  Kc8 {[%clk 0:00:22]} 48. Nc3 {[%clk 0:00:36]}  Kb7 {[%clk 0:00:23]} 49. Ne2 {[%clk 0:00:36]}  Ka6 {[%clk 0:00:23]} 50. Nc3 {[%clk 0:00:36]}  Be7 {[%clk 0:00:22]} 51. Ne2 {[%clk 0:00:36]}  Nd5 {[%clk 0:00:22]} 52. Nc3 {[%clk 0:00:35]}  Nf6 {[%clk 0:00:23]} 53. Ne2 {[%clk 0:00:34]}  Nh7 {[%clk 0:00:22]} 54. Nc3 {[%clk 0:00:34]}  Nf8 {[%clk 0:00:23]} 55. Ne2 {[%clk 0:00:34]}  Ng6 {[%clk 0:00:23]} 56. Nc3 {[%clk 0:00:34]}  Kb7 {[%clk 0:00:23]} 57. Ne2 {[%clk 0:00:34]}  Kc8 {[%clk 0:00:23]} 58. Nc3 {[%clk 0:00:34]}  Kd7 {[%clk 0:00:24]} 59. Ne2 {[%clk 0:00:33]}  Bf6 {[%clk 0:00:20]} 60. Nc3 {[%clk 0:00:32]}  Be7 {[%clk 0:00:21]} 61. Ne2 {[%clk 0:00:31]}  Ke8 {[%clk 0:00:21]} 62. Nc3 {[%clk 0:00:29]}  Kf7 {[%clk 0:00:20]} 63. Be1 {[%clk 0:00:26]}  Bd8 {[%clk 0:00:20]} 64. Ne2 {[%clk 0:00:25]}  Bc7 {[%clk 0:00:19]} 65. Kc2 {[%clk 0:00:21]}  Ne7 {[%clk 0:00:19]} 66. Kb3 {[%clk 0:00:21]}  Nd5 {[%clk 0:00:19]} 67. Bd2 {[%clk 0:00:21]}  Kg6 {[%clk 0:00:19]} 68. Nc3 {[%clk 0:00:20]}  Nf6 {[%clk 0:00:19]} 69. Ne2 {[%clk 0:00:19]}  Bd8 {[%clk 0:00:19]} 70. Be1 {[%clk 0:00:19]}  Ne8 {[%clk 0:00:18]} 71. Nc3 {[%clk 0:00:18]}  Nc7 {[%clk 0:00:18]} 72. Ne2 {[%clk 0:00:18]}  Nd5 {[%clk 0:00:17]} 73. Bd2 {[%clk 0:00:18]}  Kh6 {[%clk 0:00:17]} 74. Nc3 {[%clk 0:00:18]}  Nf6 {[%clk 0:00:17]} 75. Be1 {[%clk 0:00:16]}  Nh7 {[%clk 0:00:17]} 76. Ne2 {[%clk 0:00:16]}  Nf8 {[%clk 0:00:18]} 77. Nc3 {[%clk 0:00:17]}  Ng6 {[%clk 0:00:18]} 78. Ne2 {[%clk 0:00:17]}  Bf6 {[%clk 0:00:13]} 79. Nc3 {[%clk 0:00:16]}  Ne7 {[%clk 0:00:14]} 80. Ne2 {[%clk 0:00:16]}  Nd5 {[%clk 0:00:14]} 81. Bd2 {[%clk 0:00:16]}  Kg6 {[%clk 0:00:13]} 82. Kc2 {[%clk 0:00:16]}  Nc7 {[%clk 0:00:14]} 83. Be1 {[%clk 0:00:15]}  Kf7 {[%clk 0:00:14]} 84. Nc3 {[%clk 0:00:14]}  Ke8 {[%clk 0:00:14]} 85. Kb3 {[%clk 0:00:13]}  Kd7 {[%clk 0:00:14]} 86. Ne2 {[%clk 0:00:14]}  Ne8 {[%clk 0:00:13]} 87. Nc3 {[%clk 0:00:13]}  Be7 {[%clk 0:00:12]} 1/2-1/2

[Event "January 2 Late 2024"]
[Site "https://www.chess.com"]
[Date "2024.01.02"]
[Round "11"]
[White "Lin, Bryan Enming"]
[Black "Blanco Diez, David"]
[Result "1-0"]
[Board "77"]
[TimeControl "180+1"]
[WhiteFideId "30987121"]
[BlackFideId "32032927"]
[WhiteElo "2546"]
[BlackElo "2435"]
[WhiteTeam "USA"]
[BlackTeam "ESP"]
[WhiteClock "0:01:39"]
[BlackClock "0:00:10"]

1. e4 {[%clk 0:02:57]}  c5 {[%clk 0:02:59]} 2. Nf3 {[%clk 0:02:57]}  e6 {[%clk 0:02:59]} 3. d4 {[%clk 0:02:58]}  cxd4 {[%clk 0:02:57]} 4. Nxd4 {[%clk 0:02:59]}  Nf6 {[%clk 0:02:57]} 5. Nc3 {[%clk 0:02:58]}  Nc6 {[%clk 0:02:57]} 6. Ndb5 {[%clk 0:02:58]}  Bc5 {[%clk 0:02:57]} 7. Nd6+ {[%clk 0:02:58]}  Ke7 {[%clk 0:02:57]} 8. Bf4 {[%clk 0:02:58]}  e5 {[%clk 0:02:57]} 9. Nf5+ {[%clk 0:02:58]}  Kf8 {[%clk 0:02:58]} 10. Bg5 {[%clk 0:02:59]}  d6 {[%clk 0:02:59]} 11. Ne3 {[%clk 0:02:57]}  Be6 {[%clk 0:02:51]} 12. Bd3 {[%clk 0:02:49]}  h6 {[%clk 0:02:34]} 13. Bxf6 {[%clk 0:02:49]}  Qxf6 {[%clk 0:02:35]} 14. O-O {[%clk 0:02:49]}  g6 {[%clk 0:02:25]} 15. Ncd5 {[%clk 0:02:47]}  Qd8 {[%clk 0:02:24]} 16. c3 {[%clk 0:02:46]}  Kg7 {[%clk 0:02:24]} 17. Nc4 {[%clk 0:02:39]}  Bxd5 {[%clk 0:02:09]} 18. exd5 {[%clk 0:02:39]}  Ne7 {[%clk 0:02:09]} 19. b4 {[%clk 0:02:39]}  Bb6 {[%clk 0:02:08]} 20. Bc2 {[%clk 0:02:30]}  Rc8 {[%clk 0:02:05]} 21. Bb3 {[%clk 0:02:30]}  f5 {[%clk 0:01:59]} 22. Kh1 {[%clk 0:02:23]}  Bc7 {[%clk 0:01:50]} 23. f4 {[%clk 0:02:22]}  b5 {[%clk 0:01:44]} 24. Ne3 {[%clk 0:02:14]}  Bb6 {[%clk 0:01:41]} 25. Qd3 {[%clk 0:02:09]}  e4 {[%clk 0:01:34]} 26. Qd2 {[%clk 0:02:07]}  Qc7 {[%clk 0:01:29]} 27. Rac1 {[%clk 0:02:04]}  a5 {[%clk 0:01:17]} 28. c4 {[%clk 0:02:03]}  Bxe3 {[%clk 0:01:04]} 29. Qxe3 {[%clk 0:02:02]}  bxc4 {[%clk 0:01:04]} 30. Qd4+ {[%clk 0:02:01]}  Kf7 {[%clk 0:01:03]} 31. Rxc4 {[%clk 0:02:00]}  Qb7 {[%clk 0:01:01]} 32. Rc6 {[%clk 0:01:59]}  Qxb4 {[%clk 0:01:00]} 33. Qxb4 {[%clk 0:01:55]}  axb4 {[%clk 0:01:01]} 34. Rxd6 {[%clk 0:01:56]}  Rhd8 {[%clk 0:01:00]} 35. Rxd8 {[%clk 0:01:55]}  Rxd8 {[%clk 0:00:59]} 36. d6+ {[%clk 0:01:56]}  Kf6 {[%clk 0:00:58]} 37. dxe7 {[%clk 0:01:57]}  Kxe7 {[%clk 0:00:58]} 38. Rc1 {[%clk 0:01:55]}  Rd2 {[%clk 0:00:54]} 39. h3 {[%clk 0:01:53]}  g5 {[%clk 0:00:54]} 40. Rc5 {[%clk 0:01:51]}  Kf6 {[%clk 0:00:36]} 41. Rc6+ {[%clk 0:01:50]}  Kg7 {[%clk 0:00:36]} 42. Rc7+ {[%clk 0:01:50]}  Kf6 {[%clk 0:00:37]} 43. Rc6+ {[%clk 0:01:45]}  Kg7 {[%clk 0:00:36]} 44. fxg5 {[%clk 0:01:46]}  hxg5 {[%clk 0:00:36]} 45. Re6 {[%clk 0:01:45]}  Re2 {[%clk 0:00:31]} 46. Kg1 {[%clk 0:01:44]}  f4 {[%clk 0:00:28]} 47. Kf1 {[%clk 0:01:42]}  Re3 {[%clk 0:00:26]} 48. Kf2 {[%clk 0:01:43]}  Kf8 {[%clk 0:00:18]} 49. Re5 {[%clk 0:01:41]}  Kg7 {[%clk 0:00:12]} 50. Rxg5+ {[%clk 0:01:40]}  Kf6 {[%clk 0:00:13]} 51. Rb5 {[%clk 0:01:40]}  Rc3 {[%clk 0:00:12]} 52. Rb6+ {[%clk 0:01:39]}  Ke5 {[%clk 0:00:11]} 53. Rb5+ {[%clk 0:01:39]}  Kd4 {[%clk 0:00:10]} 54. Rd5# {[%clk 0:01:39]} 1-0

[Event "January 2 Late 2024"]
[Site "https://www.chess.com"]
[Date "2024.01.02"]
[Round "11"]
[White "Lymar, Vladislav"]
[Black "Jaque Gutierrez, Matias"]
[Result "1-0"]
[Board "78"]
[TimeControl "180+1"]
[WhiteFideId "14162180"]
[BlackFideId "3426980"]
[WhiteElo "2542"]
[BlackElo "2431"]
[WhiteTeam "UKR"]
[BlackTeam "CHI"]
[WhiteClock "0:00:15"]
[BlackClock "0:00:03"]

1. f4 {[%clk 0:02:48]}  d5 {[%clk 0:02:57]} 2. Nf3 {[%clk 0:02:49]}  Bg4 {[%clk 0:02:50]} 3. Ne5 {[%clk 0:02:45]}  Bf5 {[%clk 0:02:42]} 4. d4 {[%clk 0:02:44]}  e6 {[%clk 0:02:34]} 5. e3 {[%clk 0:02:43]}  Nd7 {[%clk 0:02:29]} 6. Bd3 {[%clk 0:02:42]}  Bxd3 {[%clk 0:02:28]} 7. cxd3 {[%clk 0:02:39]}  Ngf6 {[%clk 0:02:27]} 8. O-O {[%clk 0:02:36]}  c5 {[%clk 0:02:26]} 9. dxc5 {[%clk 0:02:34]}  Bxc5 {[%clk 0:02:26]} 10. g4 {[%clk 0:02:14]}  Nxe5 {[%clk 0:02:22]} 11. fxe5 {[%clk 0:02:15]}  Nd7 {[%clk 0:02:22]} 12. d4 {[%clk 0:02:13]}  Be7 {[%clk 0:02:22]} 13. Nc3 {[%clk 0:02:10]}  O-O {[%clk 0:02:20]} 14. Bd2 {[%clk 0:02:08]}  f6 {[%clk 0:02:08]} 15. exf6 {[%clk 0:02:07]}  Nxf6 {[%clk 0:02:08]} 16. Be1 {[%clk 0:02:06]}  Bd6 {[%clk 0:02:06]} 17. Bh4 {[%clk 0:01:59]}  Qb8 {[%clk 0:01:57]} 18. Qe2 {[%clk 0:01:58]}  a6 {[%clk 0:01:49]} 19. g5 {[%clk 0:01:57]}  Nd7 {[%clk 0:01:42]} 20. g6 {[%clk 0:01:54]}  hxg6 {[%clk 0:01:38]} 21. e4 {[%clk 0:01:41]}  Qa7 {[%clk 0:01:35]} 22. exd5 {[%clk 0:01:36]}  Qxd4+ {[%clk 0:01:32]} 23. Bf2 {[%clk 0:01:36]}  Qe5 {[%clk 0:01:26]} 24. Qxe5 {[%clk 0:01:36]}  Nxe5 {[%clk 0:01:26]} 25. dxe6 {[%clk 0:01:19]}  Rae8 {[%clk 0:01:27]} 26. Kg2 {[%clk 0:01:16]}  Rxe6 {[%clk 0:01:26]} 27. Rad1 {[%clk 0:01:16]}  Bb8 {[%clk 0:01:24]} 28. Bg3 {[%clk 0:01:12]}  Rxf1 {[%clk 0:01:22]} 29. Kxf1 {[%clk 0:01:12]}  Ba7 {[%clk 0:01:16]} 30. Kg2 {[%clk 0:01:07]}  Nc4 {[%clk 0:01:13]} 31. Rd7 {[%clk 0:00:58]}  Ne3+ {[%clk 0:00:57]} 32. Kf3 {[%clk 0:00:57]}  Rf6+ {[%clk 0:00:56]} 33. Ke4 {[%clk 0:00:55]}  Re6+ {[%clk 0:00:49]} 34. Kd3 {[%clk 0:00:55]}  Nf5 {[%clk 0:00:35]} 35. Rxb7 {[%clk 0:00:50]}  Bd4 {[%clk 0:00:35]} 36. Ne4 {[%clk 0:00:44]}  a5 {[%clk 0:00:34]} 37. b3 {[%clk 0:00:40]}  Re8 {[%clk 0:00:33]} 38. Rd7 {[%clk 0:00:34]}  Bb6 {[%clk 0:00:24]} 39. Rd5 {[%clk 0:00:23]}  Ne3 {[%clk 0:00:20]} 40. Rd6 {[%clk 0:00:21]}  Ba7 {[%clk 0:00:14]} 41. Ra6 {[%clk 0:00:21]}  Re7 {[%clk 0:00:05]} 42. Bd6 {[%clk 0:00:17]}  Rd7 {[%clk 0:00:04]} 43. Rxa7 {[%clk 0:00:16]}  Rxa7 {[%clk 0:00:04]} 44. Kxe3 {[%clk 0:00:17]}  a4 {[%clk 0:00:05]} 45. b4 {[%clk 0:00:17]}  a3 {[%clk 0:00:06]} 46. b5 {[%clk 0:00:16]}  Rb7 {[%clk 0:00:05]} 47. Nc3 {[%clk 0:00:17]}  Rd7 {[%clk 0:00:05]} 48. Bf4 {[%clk 0:00:15]}  Kf7 {[%clk 0:00:03]} 49. b6 {[%clk 0:00:15]}  Rc7 {[%clk 0:00:01]} 50. Bxc7 {[%clk 0:00:15]}  Ke6 {[%clk 0:00:01]} 51. b7 {[%clk 0:00:16]}  Kd7 {[%clk 0:00:02]} 52. b8=Q {[%clk 0:00:17]}  Kc6 {[%clk 0:00:03]} 53. Qb6+ {[%clk 0:00:15]} 1-0

[Event "January 2 Late 2024"]
[Site "https://www.chess.com"]
[Date "2024.01.02"]
[Round "11"]
[White "Carrasco Miranda, Andres"]
[Black "Rangel, Daniel"]
[Result "1/2-1/2"]
[Board "81"]
[TimeControl "180+1"]
[WhiteFideId "3405990"]
[BlackFideId "2124475"]
[WhiteElo "2418"]
[BlackElo "2511"]
[WhiteTeam "CHI"]
[BlackTeam "BRA"]
[WhiteClock "0:00:37"]
[BlackClock "0:00:43"]

1. Nf3 {[%clk 0:03:00]}  Nf6 {[%clk 0:02:59]} 2. c4 {[%clk 0:02:59]}  g6 {[%clk 0:02:57]} 3. g3 {[%clk 0:02:59]}  Bg7 {[%clk 0:02:58]} 4. Bg2 {[%clk 0:02:59]}  O-O {[%clk 0:02:58]} 5. O-O {[%clk 0:03:00]}  d6 {[%clk 0:02:58]} 6. Nc3 {[%clk 0:03:01]}  e5 {[%clk 0:02:57]} 7. d4 {[%clk 0:03:00]}  exd4 {[%clk 0:02:55]} 8. Nxd4 {[%clk 0:03:01]}  Nbd7 {[%clk 0:02:54]} 9. h3 {[%clk 0:03:01]}  Nc5 {[%clk 0:02:53]} 10. e4 {[%clk 0:03:00]}  Re8 {[%clk 0:02:52]} 11. Re1 {[%clk 0:03:00]}  c6 {[%clk 0:02:51]} 12. Bf4 {[%clk 0:02:59]}  Nh5 {[%clk 0:02:44]} 13. Be3 {[%clk 0:03:00]}  Nf6 {[%clk 0:02:41]} 14. Qc2 {[%clk 0:02:59]}  a5 {[%clk 0:02:38]} 15. Rad1 {[%clk 0:02:58]}  Qb6 {[%clk 0:02:34]} 16. b3 {[%clk 0:02:54]}  a4 {[%clk 0:02:30]} 17. Rb1 {[%clk 0:02:42]}  axb3 {[%clk 0:02:29]} 18. axb3 {[%clk 0:02:43]}  Qc7 {[%clk 0:02:06]} 19. b4 {[%clk 0:02:38]}  Ne6 {[%clk 0:02:05]} 20. Red1 {[%clk 0:02:26]}  Nxd4 {[%clk 0:01:54]} 21. Bxd4 {[%clk 0:02:27]}  Be6 {[%clk 0:01:54]} 22. c5 {[%clk 0:02:23]}  d5 {[%clk 0:01:46]} 23. exd5 {[%clk 0:02:20]}  Nxd5 {[%clk 0:01:47]} 24. Bxg7 {[%clk 0:02:17]}  Kxg7 {[%clk 0:01:46]} 25. Nxd5 {[%clk 0:02:17]}  Bxd5 {[%clk 0:01:46]} 26. Bxd5 {[%clk 0:02:17]}  cxd5 {[%clk 0:01:47]} 27. Rxd5 {[%clk 0:02:16]}  Qc6 {[%clk 0:01:33]} 28. Rbd1 {[%clk 0:02:02]}  Re6 {[%clk 0:01:18]} 29. Qb2+ {[%clk 0:01:51]}  Kh6 {[%clk 0:01:17]} 30. b5 {[%clk 0:01:47]}  Qe8 {[%clk 0:01:16]} 31. Kg2 {[%clk 0:01:42]}  Re2 {[%clk 0:01:12]} 32. Qd4 {[%clk 0:01:21]}  Raa2 {[%clk 0:01:08]} 33. Qf4+ {[%clk 0:01:14]}  Kg7 {[%clk 0:01:06]} 34. R1d2 {[%clk 0:01:14]}  Raxd2 {[%clk 0:01:03]} 35. Rxd2 {[%clk 0:01:15]}  Rxd2 {[%clk 0:01:02]} 36. Qxd2 {[%clk 0:01:15]}  Qxb5 {[%clk 0:01:01]} 37. Qd4+ {[%clk 0:01:13]}  Kf8 {[%clk 0:00:56]} 38. Qd6+ {[%clk 0:01:12]}  Ke8 {[%clk 0:00:56]} 39. Qb8+ {[%clk 0:01:08]}  Kd7 {[%clk 0:00:54]} 40. Qd6+ {[%clk 0:01:08]}  Ke8 {[%clk 0:00:54]} 41. Qe5+ {[%clk 0:00:38]}  Kd7 {[%clk 0:00:47]} 42. Qd6+ {[%clk 0:00:37]}  Ke8 {[%clk 0:00:43]} 1/2-1/2

[Event "January 2 Late 2024"]
[Site "https://www.chess.com"]
[Date "2024.01.02"]
[Round "11"]
[White "Mazi, Leon"]
[Black "Skaric, Djuro"]
[Result "1-0"]
[Board "84"]
[TimeControl "180+1"]
[WhiteFideId "14600315"]
[BlackFideId "934569"]
[WhiteElo "2496"]
[BlackElo "2315"]
[WhiteTeam "SLO"]
[BlackTeam "SRB"]
[WhiteClock "0:00:38"]
[BlackClock "0:00:06"]

1. e4 {[%clk 0:03:00]}  d6 {[%clk 0:03:00]} 2. d4 {[%clk 0:02:59]}  g6 {[%clk 0:03:01]} 3. Nc3 {[%clk 0:02:58]}  Bg7 {[%clk 0:03:02]} 4. Be3 {[%clk 0:02:57]}  Nf6 {[%clk 0:03:02]} 5. f3 {[%clk 0:02:57]}  O-O {[%clk 0:03:02]} 6. Qd2 {[%clk 0:02:57]}  Nc6 {[%clk 0:03:02]} 7. Nge2 {[%clk 0:02:49]}  e5 {[%clk 0:03:02]} 8. d5 {[%clk 0:02:48]}  Ne7 {[%clk 0:03:02]} 9. h4 {[%clk 0:02:48]}  h5 {[%clk 0:02:54]} 10. O-O-O {[%clk 0:02:33]}  a6 {[%clk 0:02:54]} 11. g4 {[%clk 0:02:30]}  b5 {[%clk 0:02:49]} 12. Ng3 {[%clk 0:02:28]}  Kh7 {[%clk 0:02:45]} 13. gxh5 {[%clk 0:02:14]}  Nxh5 {[%clk 0:02:41]} 14. Nxh5 {[%clk 0:02:09]}  gxh5 {[%clk 0:02:41]} 15. f4 {[%clk 0:02:08]}  exf4 {[%clk 0:02:39]} 16. Bxf4 {[%clk 0:02:08]}  Ng6 {[%clk 0:02:39]} 17. Bg5 {[%clk 0:02:06]}  Qe8 {[%clk 0:02:35]} 18. Bd3 {[%clk 0:01:58]}  Qe5 {[%clk 0:02:31]} 19. Rdf1 {[%clk 0:01:54]}  b4 {[%clk 0:02:22]} 20. Nd1 {[%clk 0:01:53]}  Bg4 {[%clk 0:02:18]} 21. Rf5 {[%clk 0:01:46]}  Qg3 {[%clk 0:02:08]} 22. Ne3 {[%clk 0:01:40]}  Ne5 {[%clk 0:01:58]} 23. Nxg4 {[%clk 0:01:39]}  Qxg4 {[%clk 0:01:57]} 24. Rhf1 {[%clk 0:01:36]}  f6 {[%clk 0:01:50]} 25. Be3 {[%clk 0:01:15]}  Rae8 {[%clk 0:01:28]} 26. Bf4 {[%clk 0:01:11]}  Nf3 {[%clk 0:01:25]} 27. Qf2 {[%clk 0:01:06]}  Ne5 {[%clk 0:01:21]} 28. Be2 {[%clk 0:01:05]}  Qh3 {[%clk 0:01:17]} 29. Bxh5 {[%clk 0:01:04]}  b3 {[%clk 0:01:09]} 30. axb3 {[%clk 0:01:03]}  Rb8 {[%clk 0:01:01]} 31. Kb1 {[%clk 0:00:55]}  Rb4 {[%clk 0:00:53]} 32. Qe2 {[%clk 0:00:50]}  Rxe4 {[%clk 0:00:49]} 33. Qxe4 {[%clk 0:00:49]}  Qxf1+ {[%clk 0:00:49]} 34. Bc1 {[%clk 0:00:47]}  Qxf5 {[%clk 0:00:22]} 35. Qxf5+ {[%clk 0:00:46]}  Kh8 {[%clk 0:00:21]} 36. Be2 {[%clk 0:00:44]}  Kg8 {[%clk 0:00:14]} 37. h5 {[%clk 0:00:44]}  Kf7 {[%clk 0:00:14]} 38. h6 {[%clk 0:00:44]}  Bh8 {[%clk 0:00:14]} 39. Bh5+ {[%clk 0:00:41]}  Ke7 {[%clk 0:00:14]} 40. Qe6+ {[%clk 0:00:41]}  Kd8 {[%clk 0:00:14]} 41. h7 {[%clk 0:00:39]}  a5 {[%clk 0:00:13]} 42. Qg8 {[%clk 0:00:39]}  Ke7 {[%clk 0:00:06]} 43. Bh6 {[%clk 0:00:38]} 1-0